[Event "CCT Airthings Masters Play-In 2023"]
[Site "Online"]
[Date "2023.02.03"]
[Round "4"]
[White "Byniolus"]
[Black "penguingm1"]
[Result "1-0"]
[ECO "D02"]
[WhiteElo "2220"]
[BlackElo "2419"]
[Annotator "TA"]
[PlyCount "75"]
[EventDate "2023.02.03"]
[EventType "swiss"]
[EventCountry "NET"]
[SourceTitle "playchess.com"]
[Source "ChessBase"]
[SourceQuality "1"]
[TimeControl "600+2"]

{[%evp 11,75,0,6,0,0,-7,-15,-12,-20,-14,-7,-20,-10,-17,-3,-24,-30,-31,-26,-47,0,0,0,-15,79,70,75,77,72,83,185,177,185,74,64,68,70,68,70,73,150,160,150,143,150,143,188,195,195,181,507,489,507,504,495,500,473,481,478,462,557,554,610,618,628,616]} 1. d4 {[%emt 0:00:03]} d5 {[%emt 0:00:03]} 2. Bf4 {[%emt 0:00:01]} Nf6 {[%emt 0:00:09]} 3. e3 {[%emt 0:00:01]} e6 {[%emt 0:00:00]} 4. Nd2 {[%emt 0:00:01]} c5 {[%emt 0:00:02]} 5. c3 {[%emt 0:00:01]} Nc6 {[%emt 0:00:00]} 6. Ngf3 {[%emt 0:00:01]} Nh5 {[%emt 0:00:01] 6...cxd4 is becoming the main line.} 7. Be5 {[%emt 0:00:02] D02: 1 d4 d5 2 Nf3 sidelines, including 2...Nf6 3 g3 and 2...Nf6 3 Bf4.} f6 {[%emt 0:00:04]} 8. Bg3 {[%emt 0:00:01]} g6 {[%emt 0:00:00]} 9. Bh4 {[%emt 0:00:01] [#] The position is equal.} Be7 $146 {[%emt 0:01:06]} ({Predecessor:} 9... cxd4 10. Nxd4 Nxd4 11. exd4 Bd6 12. Be2 Nf4 13. O-O O-O 14. Re1 Bd7 15. Bf1 Rf7 {1-0 Xiong,J (2686)-Najer,E (2659) Titled Tuesday intern op 15 Mar Late blitz 2022 (2)}) 10. Be2 {[%emt 0:00:09]} cxd4 {[%emt 0:00:24]} 11. cxd4 {[%emt 0:00:02]} O-O {[%emt 0:00:21]} 12. O-O {[%emt 0:00:12]} Ng7 {[%emt 0:00:02]} 13. Qb3 {[%emt 0:00:18]} Nf5 {[%emt 0:00:47]} (13... g5 $5 14. Bg3 $8 Nf5 $11) 14. Bg3 {[%emt 0:00:03]} g5 {[%emt 0:00:03]} 15. Bd3 {[%emt 0:00:18]} h5 {[%emt 0:00:25]} (15... Nxg3 $15 {might be stronger.} 16. hxg3 Bd7) 16. Bxf5 $1 $11 {[%emt 0:01:03]} exf5 {[%emt 0:00:00]} 17. h3 {[%emt 0:00:01] [#]} f4 {[%emt 0:00:08]} 18. exf4 $16 {[%emt 0:00:10][%cal Be3f4,Bf4f5][%mdl 32]} g4 $1 {[%emt 0:00:02]} 19. hxg4 {[%emt 0:00:39]} hxg4 {[%emt 0:00:01] [#]} 20. Nh4 {[%emt 0:00:29]} Kg7 {[%emt 0:01:26] [#]} (20... f5 $16 21. Ng6 Rf7) 21. f5 $1 $18 {[%emt 0:01:10] And now Qd1 would win.} Qb6 {[%emt 0:01:31]} (21... Nxd4 $2 22. Qd1 Ne6 23. Qxg4+ Ng5 24. f4 $18) 22. Qxd5 {[%emt 0:02:23]} (22. Qc2 $18 {has better winning chances.}) 22... Qxd4 $16 {[%emt 0:01:33]} 23. Qxd4 {[%emt 0:00:04]} Nxd4 {[%emt 0:00:00]} 24. Rfe1 $1 {[%emt 0:00:00]} (24. Ng6 Ne2+ 25. Kh2 Rd8 $17) 24... Kf7 {[%emt 0:01:15]} 25. Rac1 {[%emt 0:00:14] Strongly threatening Rc7.} Nc6 {[%emt 0:00:44]} (25... Rd8 $142) 26. Nc4 $36 {[%emt 0:00:33][%mdl 2048] White has strong initiative. White is much more active. The black rooks are badly placed.} Rd8 {[%emt 0:00:11]} 27. Ne3 {[%emt 0:00:20]} Rd4 {[%emt 0:00:20]} 28. Red1 {[%emt 0:00:08]} Bd7 {[%emt 0:00:18]} 29. Rxd4 {[%emt 0:00:01]} Nxd4 {[%emt 0:00:00]} 30. Rc7 {[%emt 0:00:01]} (30. Nxg4 $2 {loses.} Ne2+ 31. Kh2 Nxc1 $19) 30... Bc6 {[%emt 0:00:01]} (30... Ke8 {is a better chance.} 31. Rxb7 Bc8) 31. Bd6 {[%emt 0:00:06] White is clearly winning.} (31. Nxg4 Nb5 $11) 31... Re8 {[%emt 0:00:01]} 32. Ng6 {[%emt 0:00:01] Wards off Nb5} Nb5 {[%emt 0:00:05]} 33. Rxe7+ {[%emt 0:00:03]} Rxe7 {[%emt 0:00:01]} 34. Bxe7 {[%emt 0:00:00]} Be4 {[%emt 0:00:02]} 35. Bb4 {[%emt 0:00:09]} ({Weaker is} 35. Nxg4 Bxf5 36. Nh6+ (36. Nxf6 Bxg6 37. Bd8 Bb1 $16) 36... Kxg6 $16) 35... b6 {[%emt 0:00:02]} 36. Nh4 {[%emt 0:00:08]} ({Not} 36. Nxg4 Bxf5 37. N4e5+ (37. Nh8+ Kg7 $16) 37... fxe5 $18) 36... a5 {[%emt 0:00:02]} 37. Bc3 {[%emt 0:00:02]} a4 {[%emt 0:00:01]} 38. a3 {[%emt 0:00:01] Weighted Error Value: White=0.07 (flawless) /Black=0.33} 1-0

[Event "CCT Airthings Masters Play-In 2023"]
[Site "Online"]
[Date "2023.02.03"]
[Round "4"]
[White "Ginger_GM"]
[Black "attack2mateU"]
[Result "1-0"]
[ECO "D00"]
[WhiteElo "2194"]
[BlackElo "2569"]
[Annotator "TA"]
[PlyCount "75"]
[EventDate "2023.02.03"]
[EventType "swiss"]
[EventCountry "NET"]
[SourceTitle "playchess.com"]
[Source "ChessBase"]
[SourceQuality "1"]
[TimeControl "600+2"]

{[%evp 9,75,14,0,0,2,0,40,36,40,40,49,57,60,18,84,-20,-12,-59,-64,-57,-79,-64,-10,-66,14,0,75,63,168,181,250,246,260,254,247,250,247,215,183,193,387,370,520,497,479,464,587,585,599,604,1050,1004,29984,2010,29987,1847,1957,1914,1827,1686,29989,29987,29987,29988,29992,29993,29995,29996]} 1. d4 {[%emt 0:00:03]} d5 {[%emt 0:00:09]} 2. Nc3 {[%emt 0:00:11]} Nf6 {[%emt 0:00:19]} 3. Bf4 {[%emt 0:00:01]} c5 {[%emt 0:00:01]} 4. e3 {[%emt 0:00:11]} a6 {[%emt 0:00:22]} 5. dxc5 {[%emt 0:00:03]} Qa5 {[%emt 0:00:51]} 6. Nf3 {[%emt 0:00:38] D00: 1 d4 d5: Unusual lines.} Qxc5 {[%emt 0:00:05]} 7. Be2 {[%emt 0:00:58] [#]} g6 $146 {[%emt 0:00:04]} ({Predecessor:} 7... Nc6 8. O-O g6 9. Bc7 b5 10. Ne5 Na7 11. Ba5 b4 12. Bxb4 Qxb4 13. Nxd5 Qd6 {½-½ Bortnyk,O (2604)-Suleymanli,A (2537) Titled Tuesday intern op 17th May Late blitz 2022 (7)}) 8. O-O {[%emt 0:00:03] White is slightly better.} Bg7 {[%emt 0:00:02]} 9. Na4 {[%emt 0:00:59]} Qa5 {[%emt 0:00:33]} 10. c4 $1 {[%emt 0:00:19]} dxc4 {[%emt 0:00:08]} 11. Bxc4 {[%emt 0:00:15] [#] Qb3 is the strong threat.} (11. Ne5 {feels hotter.} b5 12. Bf3 Ra7 13. Qd4) 11... O-O {[%emt 0:00:22]} (11... Bd7 $1 $11 {keeps the balance.} 12. Nc3 Nc6) 12. Nc3 {[%emt 0:00:28]} ({White should try} 12. b4 $16 Qxb4 13. Bxf7+ Rxf7 14. Rb1) 12... Nc6 $11 {[%emt 0:00:58]} 13. a4 {[%emt 0:00:53]} (13. h3 $11) 13... Nh5 $15 {[%emt 0:00:43]} 14. Qb3 {[%emt 0:01:32]} Nxf4 {[%emt 0:00:06]} 15. exf4 {[%emt 0:00:01]} Qb4 {[%emt 0:01:42]} (15... Bg4 $15) 16. Rfe1 {[%emt 0:01:05]} (16. Qxb4 $11 Nxb4 17. Rae1) 16... Qd6 {[%emt 0:00:44]} (16... Qxb3 $15 17. Bxb3 Bf5) 17. Rad1 $1 $11 {[%emt 0:00:26]} Qb8 {[%emt 0:01:21]} (17... Qxf4 18. Nd5 Qb8 19. Nb6 $16 (19. Nxe7+ Kh8 $16)) (17... Qc5 $1 $11) 18. Nd5 $16 {[%emt 0:00:19] White is much more active. The black rooks are badly placed.} e6 {[%emt 0:00:16] White leaves nothing to chance now.} (18... Bg4 $14) 19. Nb6 $36 {[%emt 0:00:03][%mdl 2048] White is really pushing. A dynamic duo of knights.} Na5 {[%emt 0:00:15] Black is weak on the light squares} (19... Ra7 {might work better.}) 20. Qb4 {[%emt 0:00:07]} Nc6 {[%emt 0:00:19]} 21. Qc5 {[%emt 0:00:29]} Qa7 {[%emt 0:00:10]} 22. b4 {[%emt 0:00:11]} Bc3 {[%emt 0:00:10] [#]} 23. Rb1 {[%emt 0:00:36]} Bxe1 {[%emt 0:00:07]} 24. Rxe1 {[%emt 0:00:01]} Rb8 $2 {[%emt 0:00:04]} (24... e5 25. Nxa8 (25. Nxe5 Be6 $18) 25... Qxa8 26. fxe5 (26. Nxe5 Nxe5 27. Rxe5 Bd7 $18) 26... Nd8) 25. a5 {[%emt 0:00:12][%cal Of4f5] Black must now prevent f5!} Rd8 {[%emt 0:00:13]} (25... e5 $142 26. Nxe5 Be6 27. Bxe6 (27. Nxc6 bxc6 28. Bxe6 Rfe8 $16 {[%mdl 64] Pin}) 27... fxe6 28. Nxg6 {[%mdl 64] Discovered Attack} (28. Nxc6 bxc6 29. g3 Rfe8 $16) 28... Rf6) 26. Qg5 {[%emt 0:00:13]} Kg7 {[%emt 0:00:14]} 27. h4 {[%emt 0:00:17] And now h5 would win.} (27. Ne5 f6 28. Qh4 (28. Nxc6 bxc6 29. Qc5 Qc7 $11) 28... fxe5 $16) 27... h6 {[%emt 0:00:10]} 28. Qc5 {[%emt 0:00:01]} Bd7 {[%emt 0:00:03]} 29. h5 {[%emt 0:00:03]} gxh5 {[%emt 0:00:04]} 30. Qxh5 {[%emt 0:00:06]} Be8 {[%emt 0:00:01]} 31. Qg4+ {[%emt 0:00:04]} (31. f5 $142 f6 32. Qg4+ Kh8 33. Bxe6 Ne7 34. Bc4 h5 35. Qg3 Bf7 36. Bxf7) 31... Kh7 {[%emt 0:00:10]} 32. Qh4 {[%emt 0:00:00]} (32. Ng5+ $142 hxg5 33. Qxg5 Rd1 34. Rxd1 Rd8 35. Rxd8 Nxd8 36. Qxd8 Bc6 37. Qf8) 32... Kg7 {[%emt 0:00:07]} 33. Re3 {[%emt 0:00:02][%cal Of3g5] Threatening mate with Ng5!} Rd1+ {[%emt 0:00:02]} 34. Kh2 {[%emt 0:00:01][%cal Of3g5] White threatens Ng5! and mate.} Rbd8 {[%emt 0:00:02]} 35. Ne5 {[%emt 0:00:03] White mates.} Nxe5 {[%emt 0:00:01]} 36. fxe5 {[%emt 0:00:01]} Bb5 {[%emt 0:00:14]} 37. Rg3+ {[%emt 0:00:06]} Kh7 {[%emt 0:00:02]} 38. Qf6 {[%emt 0:00:03] Weighted Error Value: White=0.15 (very precise) /Black=0.74} 1-0

[Event "CCT Airthings Masters Play-In 2023"]
[Site "Online"]
[Date "2023.02.03"]
[Round "4"]
[White "CheckBits"]
[Black "MikaelyanArman"]
[Result "0-1"]
[ECO "B22"]
[WhiteElo "2168"]
[BlackElo "2412"]
[Annotator "TA"]
[PlyCount "70"]
[EventDate "2023.02.03"]
[EventType "swiss"]
[EventCountry "NET"]
[SourceTitle "playchess.com"]
[Source "ChessBase"]
[SourceQuality "1"]
[TimeControl "600+2"]

{[%evp 13,69,14,7,-10,15,-6,6,0,0,-29,-30,-90,-8,-117,-105,-97,-96,-162,-147,-155,-10,-315,-325,-404,-393,-409,-389,-581,-389,-446,-433,-604,-595,-641,-650,-675,-664,-660,-10,-11,0,0,0,0,0,0,0,0,0,0,0,0,0,-29997,-29998,-29998,-29999,-29999]} 1. e4 {[%emt 0:00:08][%cal Be2e4,Be4e5][%mdl 32]} c5 {[%emt 0:02:13]} 2. c3 {[%emt 0:00:07]} Nf6 {[%emt 0:00:03]} 3. e5 {[%emt 0:00:01]} Nd5 {[%emt 0:00:00]} 4. Nf3 {[%emt 0:00:01]} Nc6 {[%emt 0:00:02]} 5. Bc4 {[%emt 0:00:02]} Nb6 {[%emt 0:00:01]} 6. Bb3 {[%emt 0:00:01]} d5 {[%emt 0:00:05]} 7. exd6 {[%emt 0:00:03]} Qxd6 {[%emt 0:00:01]} 8. a4 {[%emt 0:00:05] B22: Sicilian: 2 c3.} c4 {[%emt 0:00:32]} 9. Bc2 {[%emt 0:00:06]} Bg4 {[%emt 0:00:22]} 10. O-O {[%emt 0:00:08] The position is equal.} Ne5 {[%emt 0:00:45] [#]} 11. a5 $146 {[%emt 0:00:13]} ({Predecessor:} 11. Be4 f5 12. Bxb7 Rb8 13. Nxe5 Bxd1 14. Bc6+ Kd8 15. Nf7+ Kc7 16. Nxd6 exd6 17. Rxd1 Kxc6 {1-0 Kosteniuk,A (2471)-Sukandar,I (2413) Titled Tuesday intern op 01st Dec blitz 2020 (7)}) 11... Nbd7 {[%emt 0:00:40]} (11... Qd5 {is more complex.} 12. d4 Bxf3 13. dxe5 Bxd1 14. Rxd1 Qxe5 15. axb6 f5) 12. a6 {[%emt 0:00:46]} b5 {[%emt 0:01:10] Black is more active.} ({Better is} 12... Qd5 $17 13. d4 (13. axb7 Qxb7 14. d4 cxd3 $17) 13... Nxf3+ 14. gxf3 Bxf3) 13. Re1 {[%emt 0:00:25]} (13. Be4 $1 $11 Rc8 14. d4 cxd3 15. Be3) 13... Bxf3 $17 {[%emt 0:00:14]} 14. gxf3 {[%emt 0:00:02]} Nc5 {[%emt 0:00:18] ...Ned3 is the strong threat. A dynamic duo of knights.} 15. Na3 {[%emt 0:00:27]} Rb8 {[%emt 0:00:33][%cal Ba8b8,Bb8b5,Bb5c5][%mdl 32] Strongly threatening ...Ncd3.} (15... Nxa6 $2 16. Nxb5 Qd5 17. Nd4 $18) 16. Re3 {[%emt 0:00:59]} g6 {[%emt 0:00:41]} (16... Nxa6 17. f4 Nd7 18. d3 $16) (16... Ned3 $17 17. Qf1 Nxc1 18. Rxc1 e6) 17. Nxb5 $2 {[%emt 0:00:48][%mdl 8192]} Rxb5 $19 {[%emt 0:00:13]} 18. Ba4 {[%emt 0:00:02]} Nxa4 {[%emt 0:00:15]} 19. Qxa4 {[%emt 0:00:02]} Qd7 {[%emt 0:00:08]} 20. d4 {[%emt 0:00:26]} (20. b3 {is a better defense.} cxb3 21. c4) 20... cxd3 {[%emt 0:00:41]} 21. c4 {[%emt 0:04:33] [#]} Rc5 {[%emt 0:00:03] Hoping for ...Qxa4.} (21... d2 22. Bxd2 Rc5 23. Bb4 Qxa4 24. Rxa4 Nxf3+ 25. Rxf3 Rxc4 26. Rb3 $11) 22. Qa3 {[%emt 0:00:08]} e6 {[%emt 0:00:12]} 23. b4 {[%emt 0:00:02]} Nxc4 {[%emt 0:00:09]} 24. Qc3 {[%emt 0:00:13][%cal Ob4c5]} Rg5+ {[%emt 0:00:29]} (24... Nxe3 $2 25. bxc5 Nc2 26. Qxh8 $19) 25. Kh1 {[%emt 0:00:08] [#]} Qc6 $2 {[%emt 0:00:43]} 26. Rxd3 $11 {[%emt 0:00:19]} Rd5 {[%emt 0:00:01]} 27. Rxd5 {[%emt 0:00:09]} Qxd5 {[%emt 0:00:00]} 28. Qxh8 {[%emt 0:00:03][%cal Oh1g2] Black must now prevent Kg2!} Qxf3+ $40 {[%emt 0:00:01][%mdl 128] Black is up to no good.} 29. Kg1 {[%emt 0:00:00] And now Qd4 would win.} Qg4+ {[%emt 0:00:03]} 30. Kh1 {[%emt 0:00:03]} Qe4+ {[%emt 0:00:02]} 31. Kg1 {[%emt 0:00:02]} Ne5 {[%emt 0:00:04] ( -> ...Nf3+)} 32. Bh6 {[%emt 0:00:07]} (32. Qxh7 $2 Nf3+ 33. Kf1 Qc4+ 34. Kg2 Qd5 $19) 32... Nf3+ {[%emt 0:00:03]} (32... Qxb4 $2 33. Qxf8+ (33. Bxf8 Qg4+ 34. Kh1 Qf3+ 35. Kg1 Qg4+ 36. Kh1 Qf3+ 37. Kg1 Qg4+ $11) 33... Qxf8 34. Bxf8 Kxf8 35. Rc1 $18) 33. Kh1 $2 {[%emt 0:00:02][%mdl 8192]} (33. Kf1 Nxh2+ 34. Kg1 Nf3+ 35. Kf1 Qc4+ 36. Kg2 Qg4+ 37. Kf1 Qh3+ 38. Ke2 Qxh6) (33. Kg2 $11 Ng5+ 34. Kf1 Qc4+ 35. Ke1 Qe4+ 36. Kd1 Qd3+ 37. Kc1 Qc4+ 38. Kd2 (38. Kd1 Qg4+ 39. Kc2 Qc4+ 40. Kd1 Qg4+ 41. Kc2 Qe2+ 42. Kb3 Qd3+ 43. Ka4 Qxa6+ 44. Kb3 Qd3+ 45. Ka4 Qa6+ 46. Kb3 Qd3+ 47. Ka4 Qa6+ $11) 38... Qxb4+ 39. Kd1 Qg4+ 40. Kd2 Ne4+ 41. Ke3 Qh3+ 42. Kxe4 f5+ 43. Kf4 Qxh2+ 44. Kf3 Qxh6 45. Rb1) 33... Nh4+ {[%emt 0:00:02] Black mates.} 34. f3 {[%emt 0:00:20]} Qxf3+ {[%emt 0:00:01]} 35. Kg1 {[%emt 0:00:01]} Qg2# {[%emt 0:00:00] Artfully played by MikaelyanArman.   Weighted Error Value: White=0.79/Black=0.42} 0-1

[Event "CCT Airthings Masters Play-In 2023"]
[Site "Online"]
[Date "2023.02.03"]
[Round "4"]
[White "DeviatkinAndrey"]
[Black "hissha"]
[Result "1/2-1/2"]
[ECO "D02"]
[WhiteElo "2052"]
[BlackElo "2277"]
[Annotator "TA"]
[PlyCount "91"]
[EventDate "2023.02.03"]
[EventType "swiss"]
[EventCountry "NET"]
[SourceTitle "playchess.com"]
[Source "ChessBase"]
[SourceQuality "1"]
[TimeControl "600+2"]

{[%evp 9,91,8,5,4,10,0,3,0,0,5,1,0,0,-7,-12,-8,1,-7,-7,-14,-9,-39,-14,-18,0,0,0,0,25,5,20,-57,-54,-97,-91,-68,0,0,0,0,0,0,0,0,0,0,0,0,0,0,0,0,0,0,0,0,0,0,0,0,0,0,0,0,0,0,0,0,0,0,0,0,0,-18,-18,-18,-18,-18,0,-18,0,-18,0,-18]} 1. d4 {[%emt 0:00:03]} Nf6 {[%emt 0:00:06]} 2. Nf3 {[%emt 0:00:07]} d5 {[%emt 0:00:04]} 3. Bf4 {[%emt 0:00:11]} e6 {[%emt 0:00:03]} 4. e3 {[%emt 0:00:02]} Bd6 {[%emt 0:00:04]} 5. c3 {[%emt 0:00:04]} Bxf4 {[%emt 0:00:05]} 6. exf4 {[%emt 0:00:01] D02: 1 d4 d5 2 Nf3 sidelines, including 2...Nf6 3 g3 and 2...Nf6 3 Bf4.} O-O {[%emt 0:00:10]} 7. Bd3 {[%emt 0:00:03]} b6 {[%emt 0:00:21]} 8. Nbd2 {[%emt 0:00:18]} Ba6 {[%emt 0:00:08]} 9. Bxa6 {[%emt 0:00:06]} Nxa6 {[%emt 0:00:02]} 10. Qe2 {[%emt 0:00:01]} Nb8 {[%emt 0:00:23]} 11. Ne5 {[%emt 0:00:04]} c5 {[%emt 0:00:07]} 12. O-O {[%emt 0:00:07]} Qc7 {[%emt 0:01:04] [#]} 13. Rac1 $146 {[%emt 0:01:53]} ({Predecessor:} 13. Ndf3 Nc6 14. Rad1 cxd4 15. Nxc6 Qxc6 16. Nxd4 Qc7 17. g3 a6 18. Rfe1 {1-0 Grachev,B (2619)-Matlakov,M (2688) EU-Cup Online Play-C rapid 2021 (4.2)}) 13... Nc6 {[%emt 0:00:09]} 14. a3 {[%emt 0:00:04]} Rac8 {[%emt 0:00:31]} 15. Qe3 {[%emt 0:00:21]} Qe7 {[%emt 0:01:08]} (15... Ne7 $5 {[%cal Re7f5]}) 16. Ndf3 {[%emt 0:01:06]} Ne4 {[%emt 0:00:31]} 17. Nxc6 {[%emt 0:01:19]} Rxc6 {[%emt 0:00:00]} 18. c4 {[%emt 0:00:02]} Rfc8 {[%emt 0:03:56]} 19. cxd5 {[%emt 0:01:54]} exd5 {[%emt 0:00:03]} 20. Rcd1 {[%emt 0:00:07]} (20. dxc5 $11 Rxc5 21. Rcd1) 20... c4 $15 {[%emt 0:00:10]} 21. Ne5 {[%emt 0:00:43] [#]} R6c7 {[%emt 0:00:02]} 22. Rfe1 {[%emt 0:00:33][%cal Bf1e1,Be1e4,Be4e7,Be7d7][%mdl 32]} f6 {[%emt 0:00:08]} ({Better is} 22... c3 $15 23. f3 Nd6 24. bxc3 Rxc3) 23. f3 $11 {[%emt 0:00:25] The position is equal.} fxe5 {[%emt 0:00:13]} 24. fxe4 {[%emt 0:00:01]} exd4 {[%emt 0:00:09]} 25. Qxd4 {[%emt 0:00:08]} dxe4 {[%emt 0:00:08]} 26. Rxe4 {[%emt 0:00:01]} Qc5 {[%emt 0:00:05]} 27. Qxc5 {[%emt 0:00:08]} Rxc5 {[%emt 0:00:03][%mdl 4096] Endgame KRR-KRR} 28. Rd7 {[%emt 0:00:01][%cal Oe4e7] [#] Ree7! is the strong threat.} R5c7 {[%emt 0:00:05]} 29. Ree7 {[%emt 0:00:11][%csl LRc7,LRg7]} Rxd7 {[%emt 0:00:03]} 30. Rxd7 {[%emt 0:00:01] KR-KR} a6 {[%emt 0:00:06]} 31. Ra7 {[%emt 0:00:04]} a5 {[%emt 0:00:07]} 32. Rb7 {[%emt 0:00:01]} c3 {[%emt 0:00:05]} 33. bxc3 {[%emt 0:00:02]} Rxc3 {[%emt 0:00:02]} 34. Rxb6 {[%emt 0:00:01]} Rxa3 {[%emt 0:00:03]} 35. Rb7 {[%emt 0:00:03]} Ra2 {[%emt 0:00:03]} 36. Ra7 {[%emt 0:00:03]} g6 {[%emt 0:00:05]} 37. h3 $1 {[%emt 0:00:09]} h5 {[%emt 0:00:05]} 38. g4 {[%emt 0:00:12]} hxg4 {[%emt 0:00:04]} 39. hxg4 {[%emt 0:00:01]} Ra4 {[%emt 0:00:06]} 40. Kg2 {[%emt 0:00:05]} Rxf4 {[%emt 0:00:03]} 41. Rxa5 {[%emt 0:00:02]} Rxg4+ {[%emt 0:00:02]} 42. Kf3 {[%emt 0:00:02]} Rg1 {[%emt 0:00:03]} 43. Kf2 {[%emt 0:00:03]} Rg4 {[%emt 0:00:03]} 44. Kf3 {[%emt 0:00:02]} Rg1 {[%emt 0:00:02]} 45. Kf2 $1 {[%emt 0:00:01]} Rg4 {[%emt 0:00:01]} 46. Kf3 {[%emt 0:00:03] Weighted Error Value: White=0.07 (flawless) /Black=0.05 (flawless)} 1/2-1/2